fUSD/lending_fUSD_20251122
["ID","MTS","AMOUNT","RATE_DAILY","PERIOD"]
[394627648,1763795467868,-726.0,0.00017006,2]
[394627649,1763795467878,-500.0,0.00017006,2]
[394627650,1763795467889,-500.0,0.00017006,2]
[394627651,1763795467898,-150.0,0.00017006,2]
[394627652,1763795467908,-500.0,0.00017006,2]
[394627653,1763795467917,-218.70493281,0.00017006,2]
[394627654,1763795467927,-150.0,0.00017006,2]
[394627655,1763795467936,-500.0,0.00017006,2]
[394627656,1763795467945,-150.0,0.00017006,2]
[394627657,1763795467954,-500.0,0.00017006,2]
[394627658,1763795467963,-500.0,0.00017006,2]
[394627659,1763795467973,-150.0,0.00017006,2]
[394627660,1763795467983,-500.0,0.00017006,2]
[394627661,1763795467991,-500.0,0.00017006,2]
[394627662,1763795468001,-484.0,0.00017006,2]
[394627663,1763795468011,-503.26423455,0.00017021,2]
[394627664,1763795468020,-1000.0,0.00017021,2]
[394627665,1763795468030,-1000.0,0.00017021,2]
[394627666,1763795468039,-915.61370264,0.00017021,2]
[394627667,1763795468048,-1000.0,0.00017021,2]
[394627668,1763795468058,-215.58724508,0.00017021,2]
[394627669,1763795468067,-1000.0,0.00017038,2]
[394627670,1763795468077,-500.0,0.0001704,2]
[394627671,1763795468087,-500.0,0.00017041,2]
[394627672,1763795468099,-500.0,0.00017041,2]
[394627673,1763795468108,-500.0,0.00017041,2]
[394627674,1763795468117,-500.62419017,0.00017041,2]
[394627675,1763795468127,-500.0,0.00017041,2]
[394627676,1763795468137,-527.47126824,0.00017041,2]
[394627677,1763795468147,-500.0,0.00017041,2]
[394627678,1763795468156,-500.0,0.00017041,2]
[394627679,1763795468166,-500.0,0.00017041,2]
[394627680,1763795468178,-1209.88,0.00017041,2]
[394627681,1763795468188,-5154.75,0.00017041,2]
[394627682,1763795468198,-500.0,0.00017041,2]
[394627683,1763795468207,-995.45,0.00017041,2]
[394627684,1763795468217,-666.13,0.00017041,2]
[394627685,1763795468226,-500.0,0.00017041,2]
[394627686,1763795468236,-1192.89,0.00017041,2]
[394627687,1763795468245,-661.37,0.00017041,2]
[394627688,1763795468255,-500.0,0.00017041,2]
[394627689,1763795468264,-719.39,0.00017041,2]
[394627690,1763795468273,-500.0,0.00017041,2]
[394627691,1763795468287,-500.0,0.00017041,2]
[394627692,1763795468296,-868.51,0.00017041,2]
[394627693,1763795468308,-618.38,0.00017041,2]
[394627694,1763795468318,-500.0,0.00017041,2]
[394627695,1763795468328,-1206.92,0.00017041,2]
[394627696,1763795468337,-659.86,0.00017041,2]
[394627697,1763795468347,-500.0,0.00017041,2]
[394627698,1763795468355,-500.0,0.00017041,2]
[394627699,1763795468365,-500.0,0.00017041,2]
[394627700,1763795468375,-500.0,0.00017041,2]
[394627701,1763795468385,-500.0,0.00017041,2]
[394627702,1763795468395,-417.21834323,0.00017041,2]
[394627703,1763795468406,-500.0,0.00017041,2]
[394627704,1763795468417,-793.08,0.00017041,2]
[394627705,1763795468429,-500.0,0.00017041,2]
[394627706,1763795468440,-428.94567121,0.00017041,2]
[394627707,1763795468450,-500.0,0.00017041,2]
[394627708,1763795468461,-500.0,0.00017041,2]
[394627709,1763795468473,-500.0,0.00017041,2]
[394627710,1763795468483,-500.0,0.00017041,2]
[394627711,1763795468494,-752.21,0.00017041,2]
[394627712,1763795468504,-724.34,0.00017041,2]
[394627713,1763795468514,-500.0,0.00017041,2]
[394627714,1763795468524,-858.11,0.00017041,2]
[394627715,1763795468534,-500.0,0.00017041,2]
[394627716,1763795468544,-642.54,0.00017041,2]
[394627717,1763795468555,-500.0,0.00017041,2]
[394627718,1763795468565,-500.0,0.00017041,2]
[394627719,1763795468575,-500.0,0.00017041,2]
[394627720,1763795468586,-1351.88,0.00017041,2]
[394627721,1763795468596,-583.12,0.00017041,2]
[394627722,1763795468606,-500.0,0.00017041,2]
[394627723,1763795468616,-500.0,0.00017041,2]
[394627724,1763795468627,-500.0,0.00017041,2]
[394627725,1763795468637,-519.14349668,0.00017041,2]
[394627726,1763795468647,-500.0,0.00017041,2]
[394627727,1763795468657,-636.97,0.00017041,2]
[394627728,1763795468667,-500.0,0.00017041,2]
[394627729,1763795468679,-1333.56,0.00017041,2]
[394627730,1763795468690,-1003.71,0.00017041,2]
[394627731,1763795468700,-500.0,0.00017041,2]
[394627732,1763795468710,-859.95,0.00017041,2]
[394627733,1763795468722,-639.99,0.00017041,2]
[394627734,1763795468733,-500.0,0.00017041,2]
[394627735,1763795468743,-500.0,0.00017041,2]
[394627736,1763795468753,-500.0,0.00017041,2]
[394627737,1763795468763,-1231.68,0.00017041,2]
[394627738,1763795468773,-500.0,0.00017041,2]
[394627739,1763795468783,-1105.87,0.00017041,2]
[394627740,1763795468793,-643.03,0.00017041,2]
[394627741,1763795468804,-500.0,0.00017041,2]
[394627742,1763795468814,-500.0,0.00017041,2]
[394627743,1763795468824,-500.0,0.00017041,2]
[394627744,1763795468835,-500.0,0.00017041,2]
[394627745,1763795468845,-1271.87,0.00017041,2]
[394627746,1763795468855,-864.09,0.00017041,2]
[394627747,1763795468865,-500.0,0.00017041,2]
[394627748,1763795468876,-668.75,0.00017041,2]
[394627749,1763795468886,-500.0,0.00017041,2]
[394627750,1763795468896,-1128.26,0.00017041,2]
[394627751,1763795468906,-500.0,0.00017041,2]
[394627752,1763795468916,-500.0,0.00017041,2]
[394627753,1763795468927,-500.0,0.00017041,2]
[394627754,1763795468938,-500.0,0.00017041,2]
[394627755,1763795468948,-1020.48,0.00017041,2]
[394627756,1763795468959,-500.0,0.00017041,2]
[394627757,1763795468969,-162.44314539,0.00017041,2]
[394627758,1763795468979,-157.46326484,0.00017041,2]
[394627759,1763795468991,-179.8614713,0.00017041,2]
[394627760,1763795469001,-182.46805895,0.00017041,2]
[394627761,1763795469011,-158.27867006,0.00017041,2]
[394627762,1763795469022,-156.98001533,0.00017041,2]
[394627763,1763795469032,-152.20025882,0.00017041,2]
[394627764,1763795469042,-155.76638023,0.00017041,2]
[394627765,1763795469052,-158.24414474,0.00017041,2]
[394627766,1763795469062,-279.51550177,0.00017041,2]
[394627767,1763795469072,-500.0,0.00017042,2]
[394627768,1763795469082,-500.0,0.00017042,2]
[394627769,1763795469092,-500.0,0.00017042,2]
[394627770,1763795469106,-500.0,0.00017042,2]
[394627771,1763795469116,-500.0,0.00017042,2]
[394627772,1763795469126,-500.0,0.00017042,2]
[394627773,1763795469136,-500.0,0.00017042,2]
[394627774,1763795469146,-500.0,0.00017042,2]
[394627775,1763795469156,-1324.57,0.00017042,2]
[394627776,1763795469166,-694.0,0.00017042,2]
[394627777,1763795469176,-496.15625594,0.00017042,2]
[394627778,1763795469188,-500.0,0.00017042,2]
[394627779,1763795469198,-500.0,0.00017042,2]
[394627780,1763795469208,-500.0,0.00017042,2]
[394627781,1763795469218,-500.0,0.00017042,2]
[394627782,1763795469227,-500.0,0.00017042,2]
[394627783,1763795469237,-861.45,0.00017042,2]
[394627784,1763795469247,-778.01,0.00017042,2]
[394627785,1763795469257,-500.0,0.00017042,2]
[394627786,1763795469267,-500.0,0.00017042,2]
[394627787,1763795469276,-500.0,0.00017042,2]
[394627788,1763795469286,-500.0,0.00017042,2]
[394627789,1763795469296,-500.0,0.00017042,2]
[394627790,1763795469306,-500.0,0.00017042,2]
[394627791,1763795469316,-855.53,0.00017042,2]
[394627792,1763795469326,-810.8,0.00017042,2]
[394627793,1763795469338,-535.7,0.00017042,2]
[394627794,1763795469348,-799.75,0.00017042,2]
[394627795,1763795469359,-500.0,0.00017042,2]
[394627796,1763795469370,-532.93,0.00017042,2]
[394627797,1763795469380,-500.0,0.00017042,2]
[394627798,1763795469390,-489.86223309,0.00017042,2]
[394627799,1763795469401,-500.0,0.00017042,2]
[394627800,1763795469412,-433.26146202,0.00017042,2]
[394627801,1763795469423,-628.99308263,0.00017042,2]
[394627802,1763795469434,-853.67,0.00017042,2]
[394627803,1763795469445,-500.0,0.00017042,2]
[394627804,1763795469455,-500.0,0.00017042,2]
[394627805,1763795469466,-500.0,0.00017042,2]
[394627806,1763795469476,-500.0,0.00017042,2]
[394627807,1763795469487,-500.0,0.00017042,2]
[394627808,1763795469497,-500.0,0.00017042,2]
[394627809,1763795469508,-500.0,0.00017042,2]
[394627810,1763795469518,-500.0,0.00017042,2]
[394627811,1763795469529,-971.94,0.00017042,2]
[394627812,1763795469539,-516.35394488,0.00017042,2]
[394627813,1763795469549,-500.0,0.00017042,2]
[394627814,1763795469560,-422.59635967,0.00017042,2]
[394627815,1763795469570,-500.0,0.00017042,2]
[394627816,1763795469582,-821.53,0.00017042,2]
[394627817,1763795469592,-818.36,0.00017042,2]
[394627818,1763795469603,-1074.73,0.00017042,2]
[394627819,1763795469613,-228.83090744,0.00017042,2]
[394627820,1763795469624,-500.0,0.00017042,2]
[394627821,1763795469633,-500.0,0.00017042,2]
[394627822,1763795469643,-1035.77,0.00017042,2]
[394627823,1763795469654,-421.70859727,0.00017042,2]
[394627824,1763795469664,-1218.66,0.00017042,2]
[394627825,1763795469676,-500.0,0.00017042,2]
[394627826,1763795469687,-616.89,0.00017042,2]
[394627827,1763795469699,-500.0,0.00017042,2]
[394627828,1763795469710,-666.17,0.00017042,2]
[394627829,1763795469720,-572.00845635,0.00017042,2]
[394627830,1763795469731,-1022.43,0.00017042,2]
[394627831,1763795469741,-500.0,0.00017042,2]
[394627832,1763795469751,-1113.68,0.00017042,2]
[394627833,1763795469762,-500.0,0.00017042,2]
[394627834,1763795469772,-500.0,0.00017042,2]
[394627835,1763795469782,-964.69,0.00017042,2]
[394627836,1763795469792,-500.0,0.00017042,2]
[394627837,1763795469803,-500.0,0.00017042,2]
[394627838,1763795469812,-500.0,0.00017042,2]
[394627839,1763795469822,-417.96625999,0.00017042,2]
[394627840,1763795469833,-500.0,0.00017042,2]
[394627841,1763795469843,-500.0,0.00017042,2]
[394627842,1763795469853,-500.0,0.00017042,2]
[394627843,1763795469864,-892.46,0.00017042,2]
[394627844,1763795469874,-500.0,0.00017042,2]
[394627845,1763795469884,-500.0,0.00017042,2]
[394627846,1763795469894,-528.27,0.00017042,2]
[394627847,1763795469904,-877.96,0.00017042,2]
[394627848,1763795469914,-774.78,0.00017042,2]
[394627849,1763795469924,-500.0,0.00017042,2]
[394627850,1763795469934,-500.0,0.00017042,2]
[394627851,1763795469947,-500.0,0.00017042,2]
[394627852,1763795469957,-500.0,0.00017042,2]
[394627853,1763795469967,-500.0,0.00017042,2]
[394627854,1763795469978,-500.0,0.00017042,2]
[394627855,1763795469988,-500.0,0.00017042,2]
[394627856,1763795469999,-500.0,0.00017042,2]
[394627857,1763795470010,-500.0,0.00017042,2]
[394627858,1763795470020,-914.75,0.00017042,2]
[394627859,1763795470030,-500.0,0.00017042,2]
[394627860,1763795470041,-801.13,0.00017042,2]
[394627861,1763795470051,-500.0,0.00017042,2]
[394627862,1763795470063,-500.0,0.00017042,2]
[394627863,1763795470074,-500.0,0.00017042,2]
[394627864,1763795470086,-500.0,0.00017042,2]
[394627865,1763795470101,-480.23595174,0.00017042,2]
[394627866,1763795470112,-423.06224783,0.00017042,2]
[394627867,1763795470122,-500.0,0.00017042,2]
[394627868,1763795470133,-500.0,0.00017042,2]
[394627869,1763795470144,-507.79,0.00017042,2]
[394627870,1763795470154,-1243.23,0.00017042,2]
[394627871,1763795470164,-500.0,0.00017042,2]
[394627872,1763795470176,-680.08,0.00017042,2]
[394627873,1763795470185,-500.0,0.00017042,2]
[394627874,1763795470196,-500.0,0.00017042,2]
[394627875,1763795470206,-917.45,0.00017042,2]
[394627876,1763795470217,-500.0,0.00017042,2]
[394627877,1763795470227,-340.45652725,0.00017042,2]
[394627878,1763795470237,-500.0,0.00017042,2]
[394627879,1763795470248,-932.46,0.00017042,2]
[394627880,1763795470258,-500.0,0.00017042,2]
[394627881,1763795470269,-500.0,0.00017042,2]
[394627882,1763795470280,-500.0,0.00017042,2]
[394627883,1763795470291,-663.27,0.00017042,2]
[394627884,1763795470301,-500.0,0.00017042,2]
[394627885,1763795470312,-500.0,0.00017042,2]
[394627886,1763795470323,-608.18123498,0.00017042,2]
[394627887,1763795470333,-500.0,0.00017042,2]
[394627888,1763795470343,-500.0,0.00017042,2]
[394627889,1763795470354,-500.0,0.00017042,2]
[394627890,1763795470364,-500.0,0.00017042,2]
[394627891,1763795470375,-826.19,0.00017042,2]
[394627892,1763795470385,-500.0,0.00017042,2]
[394627893,1763795470396,-500.0,0.00017042,2]
[394627894,1763795470406,-897.85,0.00017042,2]
[394627895,1763795470417,-500.0,0.00017042,2]
[394627896,1763795470427,-500.0,0.00017042,2]
[394627897,1763795470438,-1469.01,0.00017042,2]
[394627898,1763795470449,-519.4426018,0.00017042,2]
[394627899,1763795470459,-500.0,0.00017042,2]
[394627900,1763795470470,-500.0,0.00017042,2]
[394627901,1763795470482,-844.01,0.00017042,2]
[394627902,1763795470492,-500.0,0.00017042,2]
[394627903,1763795470502,-410.45108455,0.00017042,2]
[394627904,1763795470512,-500.0,0.00017042,2]
[394627905,1763795470521,-500.0,0.00017042,2]
[394627906,1763795470531,-500.0,0.00017042,2]
[394627907,1763795470541,-1024.25,0.00017042,2]
[394627908,1763795470552,-500.0,0.00017042,2]
[394627909,1763795470564,-500.0,0.00017042,2]
[394627910,1763795470574,-500.0,0.00017042,2]
[394627911,1763795470585,-500.0,0.00017042,2]
[394627912,1763795470596,-524.44,0.00017042,2]
[394627913,1763795470605,-500.0,0.00017042,2]
[394627914,1763795470615,-820.43,0.00017042,2]
[394627915,1763795470625,-500.0,0.00017042,2]
[394627916,1763795470634,-541.59,0.00017042,2]
[394627917,1763795470644,-1080.81,0.00017042,2]
[394627918,1763795470654,-500.0,0.00017042,2]
[394627919,1763795470664,-500.0,0.00017042,2]
[394627920,1763795470675,-500.0,0.00017042,2]
[394627921,1763795470685,-1126.7,0.00017042,2]
[394627922,1763795470698,-500.0,0.00017042,2]
[394627923,1763795470709,-538.73966035,0.00017042,2]
[394627924,1763795470719,-662.45,0.00017042,2]
[394627925,1763795470731,-755.62,0.00017042,2]
[394627926,1763795470741,-500.0,0.00017042,2]
[394627927,1763795470751,-500.0,0.00017042,2]
[394627928,1763795470762,-716.72,0.00017042,2]
[394627929,1763795470772,-948.49,0.00017042,2]
[394627930,1763795470783,-641.33,0.00017042,2]
[394627931,1763795470795,-500.0,0.00017042,2]
[394627932,1763795470807,-500.0,0.00017042,2]
[394627933,1763795470817,-500.0,0.00017042,2]
[394627934,1763795470827,-827.46,0.00017042,2]
[394627935,1763795470839,-500.0,0.00017042,2]
[394627936,1763795471150,-500.0,0.00017042,2]
[394627937,1763795471177,-421.87841168,0.00017042,2]
[394627938,1763795471186,-500.0,0.00017042,2]
[394627939,1763795471196,-500.0,0.00017042,2]
[394627940,1763795471206,-500.0,0.00017042,2]
[394627941,1763795471215,-500.0,0.00017042,2]
[394627942,1763795471225,-500.0,0.00017042,2]
[394627943,1763795471235,-500.0,0.00017042,2]
[394627944,1763795471244,-1100.16,0.00017042,2]
[394627945,1763795471254,-500.0,0.00017042,2]
[394627946,1763795471264,-500.0,0.00017042,2]
[394627947,1763795471274,-500.0,0.00017042,2]
[394627948,1763795471283,-500.0,0.00017042,2]
[394627949,1763795471292,-578.37,0.00017042,2]
[394627950,1763795471301,-507.11,0.00017042,2]
[394627951,1763795471311,-722.23,0.00017042,2]
[394627952,1763795471320,-1162.4,0.00017042,2]
[394627953,1763795471330,-776.72,0.00017042,2]
[394627954,1763795471345,-500.0,0.00017042,2]
[394627955,1763795471354,-500.0,0.00017042,2]
[394627956,1763795471364,-1201.47,0.00017042,2]
[394627957,1763795471375,-500.0,0.00017042,2]
[394627958,1763795471384,-500.0,0.00017042,2]
[394627959,1763795471394,-500.0,0.00017042,2]
[394627960,1763795471403,-500.0,0.00017042,2]
[394627961,1763795471413,-500.0,0.00017042,2]
[394627962,1763795471423,-558.88,0.00017042,2]
[394627963,1763795471433,-1990.9,0.00017042,2]
[394627964,1763795471443,-923.81,0.00017042,2]
[394627965,1763795471453,-893.8,0.00017042,2]
[394627966,1763795471462,-252.56323315,0.00017042,2]
[394627967,1763795471472,-500.0,0.00017042,2]
[394627968,1763795471483,-500.0,0.00017042,2]
[394627969,1763795471492,-500.0,0.00017042,2]
[394627970,1763795471503,-1021.95,0.00017042,2]
[394627971,1763795471513,-557.8,0.00017042,2]
[394627972,1763795471525,-1011.18,0.00017042,2]
[394627973,1763795471535,-500.0,0.00017042,2]
[394627974,1763795471544,-683.82,0.00017042,2]
[394627975,1763795471557,-500.0,0.00017042,2]
[394627976,1763795471567,-1050.83,0.00017042,2]
[394627977,1763795471577,-500.0,0.00017042,2]
[394627978,1763795471586,-635.13,0.00017042,2]
[394627979,1763795471596,-500.0,0.00017042,2]
[394627980,1763795471606,-529.46,0.00017042,2]
[394627981,1763795471616,-500.0,0.00017042,2]
[394627982,1763795471626,-500.0,0.00017042,2]
[394627983,1763795471635,-1016.32,0.00017042,2]
[394627984,1763795471644,-502.96,0.00017042,2]
[394627985,1763795471653,-500.0,0.00017042,2]
[394627986,1763795471662,-500.0,0.00017042,2]
[394627987,1763795471672,-542.19,0.00017042,2]
[394627988,1763795471682,-1206.81,0.00017042,2]
[394627989,1763795471693,-961.0,0.00017042,2]
[394627990,1763795471703,-500.0,0.00017042,2]
[394627991,1763795471712,-500.0,0.00017042,2]
[394627992,1763795471721,-1134.04,0.00017042,2]
[394627993,1763795471731,-625.8,0.00017042,2]
[394627994,1763795471741,-1296.91,0.00017042,2]
[394627995,1763795471750,-622.87,0.00017042,2]
[394627996,1763795471760,-1505.41,0.00017042,2]
[394627997,1763795471770,-1193.99076,0.00017042,2]
[394627998,1763795471780,-500.0,0.00017042,2]
[394627999,1763795471789,-500.0,0.00017042,2]
[394628000,1763795471800,-500.0,0.00017042,2]
[394628001,1763795471810,-500.0,0.00017042,2]
[394628002,1763795471820,-871.39,0.00017042,2]
[394628003,1763795471830,-500.0,0.00017042,2]
[394628004,1763795471840,-500.0,0.00017042,2]
[394628005,1763795471851,-500.0,0.00017042,2]
[394628006,1763795471861,-1422.18,0.00017042,2]
[394628007,1763795471871,-479.35670229,0.00017068,2]
[394628008,1763795471881,-1000.0,0.000171,2]
[394628009,1763795471891,-561.0,0.00017117,2]
[394628010,1763795471900,-2659.0,0.00017117,2]
[394628011,1763795471910,-1931.33294916,0.00017119,2]
[394628012,1763795471920,-500.0,0.00017141,2]
[394628013,1763795471930,-150.0,0.00017143,2]
[394628014,1763795471940,-500.0,0.00017143,2]
[394628015,1763795471949,-500.0,0.00017143,2]
[394628016,1763795471959,-150.0,0.00017143,2]
[394628017,1763795471968,-500.0,0.00017143,2]
[394628018,1763795471978,-150.0,0.00017143,2]
[394628019,1763795471989,-234.53707176,0.00017143,2]
[394628020,1763795471998,-150.0,0.00017143,2]
[394628021,1763795472008,-197.98536225,0.00017143,2]
[394628022,1763795472018,-150.0,0.00017143,2]
[394628023,1763795472028,-500.0,0.00017143,2]
[394628024,1763795472038,-520.0,0.00017143,2]
[394628025,1763795472048,-618.0,0.00017143,2]
[394628026,1763795472058,-500.0,0.00017143,2]
[394628027,1763795472068,-500.0,0.00017143,2]
[394628028,1763795472077,-510.78900437,0.00017143,2]
[394628029,1763795472088,-150.0,0.00017143,2]
[394628030,1763795472102,-150.0,0.00017143,2]
[394628031,1763795472111,-219.06841586,0.00017143,2]
[394628032,1763795472121,-500.0,0.00017143,2]
[394628033,1763795472130,-726.0,0.00017143,2]
[394628034,1763795472143,-500.0,0.00017143,2]
[394628035,1763795472153,-500.0,0.00017143,2]
[394628036,1763795472164,-150.0,0.00017143,2]
[394628037,1763795472174,-500.0,0.00017143,2]
[394628038,1763795472184,-150.0,0.00017143,2]
[394628039,1763795472194,-500.0,0.00017143,2]
[394628040,1763795472205,-150.0,0.00017143,2]
[394628041,1763795472215,-500.0,0.00017143,2]
[394628042,1763795472224,-500.0,0.00017143,2]
[394628043,1763795472234,-203.76538744,0.00017143,2]
[394628044,1763795472244,-500.0,0.00017143,2]
[394628045,1763795472253,-500.0,0.00017143,2]
[394628046,1763795472262,-484.0,0.00017143,2]
[394628047,1763795472272,-500.0,0.00017143,2]
[394628048,1763795472281,-563.26,0.00017143,2]
[394628049,1763795472291,-500.0,0.00017143,2]
[394628050,1763795472300,-500.0,0.00017143,2]
[394628051,1763795472309,-773.87,0.00017143,2]
[394628052,1763795472319,-500.0,0.00017143,2]
[394628053,1763795472329,-500.0,0.00017143,2]
[394628054,1763795472339,-506.94,0.00017143,2]
[394628055,1763795472349,-828.42,0.00017143,2]
[394628056,1763795472358,-500.0,0.00017143,2]
[394628057,1763795472367,-500.0,0.00017143,2]
[394628058,1763795472377,-677.92,0.00017143,2]
[394628059,1763795472387,-223.80686051,0.00017143,2]
[394628060,1763795472397,-999.38,0.00017143,2]
[394628061,1763795472407,-783.04,0.00017143,2]
[394628062,1763795472417,-977.89,0.00017143,2]
[394628063,1763795472427,-554.46,0.00017143,2]
[394628064,1763795472437,-500.0,0.00017143,2]
[394628065,1763795472446,-500.0,0.00017143,2]
[394628066,1763795472455,-500.0,0.00017143,2]
[394628067,1763795472466,-500.0,0.00017143,2]
[394628068,1763795472476,-500.0,0.00017143,2]
[394628069,1763795472486,-1096.0,0.00017144,2]
[394628070,1763795472496,-1260.60088822,0.00017215,2]
[394628071,1763795472506,-209.09854269,0.00017216,2]
[394628072,1763795472516,-10024.71496974,0.00017216,2]
[394628073,1763795472527,-166.84462087,0.00017216,2]
[394628074,1763795472536,-6497.0,0.00017231,2]
[394628075,1763795472546,-500.0,0.00017259,2]
[394628076,1763795472556,-413.45244426,0.00017259,2]
[394628077,1763795472566,-500.0,0.0001726,2]
[394628078,1763795472575,-500.0,0.0001726,2]
[394628079,1763795472584,-500.0,0.0001726,2]
[394628080,1763795472594,-500.0,0.0001726,2]
[394628081,1763795472604,-400.0,0.0001726,2]
[394628082,1763795472613,-500.0,0.0001726,2]
[394628083,1763795472622,-500.0,0.0001726,2]
[394628084,1763795472632,-500.0,0.0001726,2]
[394628085,1763795472641,-500.0,0.0001726,2]
[394628086,1763795472650,-500.0,0.0001726,2]
[394628087,1763795472660,-500.0,0.0001726,2]
[394628088,1763795472670,-500.0,0.0001726,2]
[394628089,1763795472679,-500.0,0.0001726,2]
[394628090,1763795472689,-929.65,0.0001726,2]
[394628091,1763795472699,-500.0,0.0001726,2]
[394628092,1763795472709,-500.0,0.0001726,2]
[394628093,1763795472719,-500.0,0.0001726,2]
[394628094,1763795472729,-452.18967628,0.0001726,2]
[394628095,1763795472739,-1055.61,0.0001726,2]
[394628096,1763795472748,-500.0,0.0001726,2]
[394628097,1763795472759,-949.05,0.0001726,2]
[394628098,1763795472769,-500.0,0.0001726,2]
[394628099,1763795472779,-652.47,0.0001726,2]
[394628100,1763795472790,-853.84,0.0001726,2]
[394628101,1763795472799,-500.0,0.0001726,2]
[394628102,1763795472808,-500.0,0.0001726,2]
[394628103,1763795472818,-500.0,0.0001726,2]
[394628104,1763795472828,-931.55,0.0001726,2]
[394628105,1763795472838,-1047.79,0.0001726,2]
[394628106,1763795472848,-690.99,0.0001726,2]
[394628107,1763795472857,-315.5126688,0.0001726,2]
[394628108,1763795472867,-500.0,0.0001726,2]
[394628109,1763795472880,-621.83,0.0001726,2]
[394628110,1763795472890,-398.01290221,0.0001726,2]
[394628111,1763795472899,-500.0,0.0001726,2]
[394628112,1763795472909,-500.0,0.0001726,2]
[394628113,1763795472918,-880.46,0.0001726,2]
[394628114,1763795472928,-500.0,0.0001726,2]
[394628115,1763795472937,-279.12357041,0.0001726,2]
[394628116,1763795472947,-500.0,0.0001726,2]
[394628117,1763795472956,-500.0,0.0001726,2]
[394628118,1763795472973,-500.0,0.0001726,2]
[394628119,1763795472991,-500.0,0.0001726,2]
[394628120,1763795473000,-500.0,0.0001726,2]
[394628121,1763795473010,-500.0,0.0001726,2]
[394628122,1763795473020,-500.0,0.0001726,2]
[394628123,1763795473030,-500.0,0.0001726,2]
[394628124,1763795473039,-500.0,0.0001726,2]
[394628125,1763795473049,-922.69,0.0001726,2]
[394628126,1763795473058,-500.0,0.0001726,2]
[394628127,1763795473068,-500.0,0.0001726,2]
[394628128,1763795473077,-1154.65,0.0001726,2]
[394628129,1763795473087,-500.0,0.0001726,2]
[394628130,1763795473098,-500.0,0.0001726,2]
[394628131,1763795473110,-500.0,0.0001726,2]
[394628132,1763795473119,-928.41,0.0001726,2]
[394628133,1763795473129,-500.0,0.0001726,2]
[394628134,1763795473140,-500.0,0.0001726,2]
[394628135,1763795473149,-500.0,0.0001726,2]
[394628136,1763795473158,-753.82,0.0001726,2]
[394628137,1763795473168,-500.0,0.0001726,2]
[394628138,1763795473178,-500.0,0.0001726,2]
[394628139,1763795473187,-500.0,0.0001726,2]
[394628140,1763795473197,-182.25506683,0.0001726,2]
[394628141,1763795473206,-500.0,0.0001726,2]
[394628142,1763795473217,-678.17,0.0001726,2]
[394628143,1763795473227,-500.0,0.0001726,2]
[394628144,1763795473236,-500.0,0.0001726,2]
[394628145,1763795473246,-419.57450361,0.0001726,2]
[394628146,1763795473256,-500.0,0.0001726,2]
[394628147,1763795473266,-571.38,0.0001726,2]